bitfinex/quotes_ETHUSD_20250414
["timestamp","ask_amount","ask_price","bid_price","bid_amount"]
[1744649641050,6.19,1629.4,1629.1,7.366014]
[1744649641051,6.13784,1629.3,1629.0,6.9637]
[1744649641258,6.13784,1629.3,1629.0,13.1023]
[1744649641454,6.1377,1629.3,1629.0,8.45124077]
[1744649641681,18.46464,1629.4,1629.1,6.13827]
[1744649642162,6.13773,1629.3,1629.0,8.45122077]
[1744649642364,6.13773,1629.3,1629.0,14.58984077]
[1744649642663,6.13773,1629.3,1629.0,14.58983077]
[1744649642850,6.13773,1629.3,1629.0,8.45121077]
[1744649643249,6.19,1629.4,1629.0,0.8251]
[1744649643443,6.13838,1629.1,1628.8,0.7975]
[1744649643967,12.2771,1629.1,1628.8,6.93685]
[1744649644431,6.13838,1629.1,1628.8,6.93685]
[1744649644850,12.27698,1629.1,1628.8,0.7975]
[1744649645051,6.13838,1629.1,1628.8,6.93696]
[1744649645257,12.27689,1629.1,1628.8,6.93696]
[1744649645446,6.13838,1629.1,1628.8,6.93696]
[1744649645646,12.278,1629.2,1628.8,14.44529574]
[1744649645872,6.13838,1629.1,1628.8,8.244537]
[1744649646370,6.13838,1629.1,1628.8,14.383897]
[1744649646668,6.13838,1629.1,1628.8,8.244537]
[1744649646864,6.13838,1629.1,1628.8,14.383907]
[1744649647039,6.13838,1629.1,1628.8,8.244537]
[1744649647235,6.13838,1629.1,1628.8,14.383897]
[1744649647984,6.13898,1629.0,1628.8,0.7975]
[1744649648189,6.13914,1628.9,1628.6,6.91155]
[1744649648344,6.13968,1628.8,1628.6,0.7714]
[1744649648799,12.27936,1628.8,1628.5,6.14056]
[1744649648939,6.14001,1628.7,1628.6,4.0]
[1744649649245,13.507974,1628.7,1628.6,4.0]
[1744649649443,13.507974,1628.7,1628.2,0.7714]
[1744649649444,6.14103,1628.4,1628.2,0.7714]
[1744649649660,6.9411,1628.4,1628.0,0.7714]
[1744649649860,6.14213,1628.1,1627.8,0.7714]
[1744649650188,6.14278,1628.0,1627.8,2.031146]
[1744649650344,6.14278,1628.0,1627.7,6.1435]
[1744649651040,6.14,1628.1,1628.0,6.9111]
[1744649651253,6.14,1628.5,1628.4,6.14099]
[1744649651458,6.14,1628.6,1628.3,6.14135]
[1744649651653,6.89973,1628.7,1628.4,6.14073]
[1744649652243,18.41918,1628.8,1628.4,12.28162]
[1744649652480,18.41918,1628.8,1628.4,13.592262]
[1744649652972,12.27954,1628.8,1628.5,6.14061]
[1744649653171,12.27954,1628.8,1628.5,12.2811]
[1744649653375,12.27954,1628.8,1628.5,6.14049]
[1744649653570,18.4192,1628.8,1628.5,6.14049]
[1744649653875,6.14074,1628.5,1628.3,0.8254]
[1744649654171,6.13986,1628.7,1628.3,0.8254]
[1744649654346,6.14102,1628.4,1628.1,0.7581]
[1744649654741,6.14,1628.4,1628.1,0.7581]
[1744649654948,6.14,1628.4,1628.1,6.90005]
[1744649655152,12.28106,1628.4,1628.1,7.590055]
[1744649655345,6.14138,1628.3,1628.0,6.14243]
[1744649655554,6.14,1628.4,1627.9,0.8176]
[1744649655757,6.14137,1628.3,1628.0,6.14238]
[1744649655979,12.28306,1628.3,1627.9,7.02183259]
[1744649656283,6.14137,1628.3,1627.9,6.96041]
[1744649656759,6.14137,1628.3,1628.0,6.1424]
[1744649657075,6.14,1628.4,1628.3,6.14137]
[1744649657276,6.9713,1628.7,1628.4,6.14064]
[1744649657463,13.11127,1628.7,1628.4,6.14064]
[1744649657672,13.11127,1628.7,1628.3,6.14135]
[1744649657869,13.11127,1628.7,1628.4,6.14096]
[1744649658051,19.25131,1628.7,1628.4,6.14096]
[1744649658803,13.11127,1628.7,1628.4,6.14096]
[1744649659081,12.27997,1628.7,1628.4,6.14089]
[1744649659252,6.14,1628.7,1628.5,6.1404]
[1744649659455,6.14,1628.7,1628.6,6.14024]
[1744649659880,6.14,1628.7,1628.6,6.92304]
[1744649660050,6.14,1628.7,1628.6,0.7828]
[1744649660560,6.14,1628.7,1628.4,7.35087731]
[1744649660761,6.14,1628.7,1628.5,6.14054]
[1744649660980,6.14,1628.7,1628.5,6.14048]
[1744649661154,6.14,1628.7,1628.6,6.14024]
[1744649662147,12.27851,1628.9,1628.6,6.14024]
[1744649662351,6.13918,1628.9,1628.6,12.28037]
[1744649662547,12.27846,1628.9,1628.6,6.14013]
[1744649663057,18.41767,1629.0,1628.6,12.34165653]
[1744649663261,12.27879,1629.0,1628.7,6.13976]
[1744649663582,12.27879,1629.0,1628.7,12.27951]
[1744649663949,0.05,1630.4,1629.4,0.7888]
[1744649664154,0.05,1630.4,1630.3,6.92264]
[1744649664359,0.05,1630.4,1630.3,15.17243308]
[1744649664585,0.05,1630.4,1630.3,8.59286421]
[1744649664586,1e-05,1630.4,1630.3,8.59286421]
[1744649665287,1e-05,1630.4,1630.3,6.92264]
[1744649665988,1e-05,1630.4,1630.0,6.90861]
[1744649666186,1e-05,1630.4,1630.3,6.13384]
[1744649666788,1e-05,1630.4,1630.2,12.26812]
[1744649666960,1e-05,1630.4,1630.2,6.13402]
[1744649667365,1e-05,1630.4,1630.2,6.747422]
[1744649667874,1e-05,1630.4,1630.3,6.13384]
[1744649671001,1e-05,1630.4,1630.3,6.1951683]
[1744649671182,1e-05,1630.4,1630.3,6.13384]
[1744649672186,1e-05,1630.4,1630.3,9.88317949]
[1744649672370,1e-05,1630.4,1630.3,12.35283964]
[1744649673972,1e-05,1630.4,1630.3,15.35283964]
[1744649675199,6.902,1631.1,1631.0,6.1312]
[1744649675503,0.762,1631.3,1631.2,6.13045]
[1744649676071,0.762,1631.3,1631.1,12.26146]
[1744649676314,0.762,1631.3,1631.1,12.26143]
[1744649676517,0.762,1631.3,1631.2,6.13045]
[1744649676686,0.762,1631.6,1631.3,6.13008]
[1744649676890,0.762,1631.6,1630.9,3.74651249]
[1744649677202,0.762,1631.3,1631.1,6.13075]
[1744649677418,0.762,1631.3,1631.0,6.13092]
[1744649677626,0.762,1631.3,1630.9,6.13154]
[1744649677832,6.89219,1631.3,1630.9,12.26296]
[1744649677990,6.89219,1631.3,1630.9,12.26284]
[1744649678389,0.762,1631.3,1630.8,6.13187]
[1744649678597,6.13057,1631.2,1630.8,6.13191]
[1744649678796,12.26136,1631.2,1630.8,6.13191]
[1744649679014,6.13096,1631.1,1630.7,6.13222]
[1744649680000,6.13096,1631.1,1630.7,12.26443]
[1744649680206,6.13096,1631.1,1630.7,12.26442]
[1744649680406,12.26199,1631.1,1630.7,6.13221]
[1744649680620,6.13126,1631.0,1630.6,10.64700249]
[1744649680814,6.13126,1631.0,1630.6,10.64707249]
[1744649681019,0.7981,1631.0,1630.6,3.74651249]
[1744649681217,6.13171,1630.9,1630.6,3.74651249]
[1744649681703,6.13171,1630.9,1630.6,9.87919249]
[1744649681903,6.13171,1630.9,1630.6,3.74651249]
[1744649682117,6.13171,1630.9,1630.6,9.87917249]
[1744649682428,6.9294,1631.0,1630.6,16.01176249]
[1744649682635,6.13168,1630.9,1630.6,9.87910249]
[1744649682794,12.2636,1630.9,1630.6,3.74651249]
[1744649682988,6.13168,1630.9,1630.6,3.74651249]
[1744649683193,6.13168,1630.9,1630.4,12.26672]
[1744649683194,6.13207,1630.8,1630.4,12.26672]
[1744649683422,6.13195,1630.8,1630.4,6.13336]
[1744649683633,6.13245,1630.7,1630.4,12.2667]
[1744649683947,6.13284,1630.6,1630.3,9.88025249]
[1744649684113,6.13346,1630.4,1630.2,0.46707505]
[1744649684427,6.13401,1630.3,1630.0,3.74651249]
[1744649684622,6.13415,1630.3,1630.0,3.74651249]
[1744649684822,6.13447,1630.2,1629.9,6.13529]
[1744649685190,6.13442,1630.2,1629.9,6.13529]
[1744649685625,6.13436,1630.2,1629.8,6.92732]
[1744649685924,6.13436,1630.2,1629.9,6.19652693]
[1744649686097,6.13436,1630.2,1629.9,12.33172693]
[1744649686428,12.26808,1630.3,1629.9,6.13518]
[1744649686629,12.26808,1630.3,1629.9,12.33174692]
[1744649686793,6.134,1630.3,1629.9,6.19667692]
[1744649686993,6.134,1630.3,1630.0,6.13495]
[1744649687199,6.13441,1630.2,1629.9,6.13533]
[1744649687495,12.2688,1630.2,1629.9,6.13522]
[1744649687695,6.14,1630.4,1629.8,13.0723396]
[1744649687909,12.27355,1630.4,1630.1,6.13454]
[1744649688198,6.14,1630.4,1630.3,6.13384]
[1744649688432,0.7678,1630.6,1630.3,16.01419249]
[1744649688611,18.40495,1630.7,1630.3,16.01411249]
[1744649688912,6.13309,1630.5,1630.3,3.74651249]
[1744649689116,6.13302,1630.6,1630.3,9.88031249]
[1744649689331,8.062335,1630.7,1630.1,9.77033403]
[1744649689332,6.13343,1630.5,1630.1,9.77033403]
[1744649689511,6.13357,1630.4,1630.1,15.90479403]
[1744649689716,6.13279,1630.6,1630.2,6.13417]
[1744649689916,12.26577,1630.6,1630.2,12.26827]
[1744649690115,6.13314,1630.5,1630.2,6.1341]
[1744649690325,6.13314,1630.5,1630.2,12.2682]
[1744649690527,12.26569,1630.6,1630.2,12.2682]
[1744649690828,12.27244,1630.7,1630.3,15.90333403]
[1744649691204,12.27244,1630.7,1630.4,6.13344]
[1744649691414,18.405,1630.7,1630.4,6.13344]
[1744649691615,18.405,1630.7,1630.3,15.90333403]
[1744649691815,6.13289,1630.6,1630.3,3.63590403]
[1744649692023,6.13289,1630.6,1630.3,10.29208547]
[1744649692205,6.13315,1630.5,1630.3,3.63590403]
[1744649692809,12.26658,1630.5,1630.3,3.63590403]
[1744649693005,6.13315,1630.5,1630.3,3.63590403]
[1744649693407,6.13277,1630.6,1630.3,9.76973403]
[1744649693837,6.13309,1630.5,1630.3,3.63590403]
[1744649694238,6.13277,1630.6,1630.3,9.76969403]
[1744649694412,12.27244,1630.7,1630.4,6.13342]
[1744649694615,6.13281,1630.6,1630.3,9.76961403]
[1744649694838,6.13281,1630.6,1630.3,9.76946403]
[1744649695309,12.26572,1630.6,1630.3,9.76946403]
[1744649695506,6.13271,1630.6,1630.3,3.63590403]
[1744649696044,12.26579,1630.6,1630.3,9.76971403]
[1744649696216,6.13271,1630.6,1630.3,9.76971403]
[1744649696545,18.40501,1630.7,1630.4,6.13334]
[1744649696711,6.13272,1630.6,1630.3,9.76962403]
[1744649696911,6.13272,1630.6,1630.3,15.90333403]
[1744649697139,6.13272,1630.6,1630.3,9.76961403]
[1744649697518,6.13272,1630.6,1630.3,17.56118983]
[1744649697722,6.14,1630.7,1630.5,3.63590403]
[1744649698029,12.27254,1630.7,1630.5,3.63590403]
[1744649698709,18.40502,1630.7,1630.5,3.63590403]
[1744649698910,6.1332,1630.5,1630.2,6.13409]
[1744649699126,6.1332,1630.5,1630.2,12.26819]
[1744649699322,12.26565,1630.6,1630.2,12.26819]
[1744649699711,6.912,1630.7,1630.2,6.13409]
[1744649699909,6.1332,1630.5,1630.2,12.2682]
[1744649700128,12.26653,1630.5,1630.2,6.13409]
[1744649700439,12.26653,1630.5,1627.5,29.75742248]
[1744649700440,6.13397,1630.3,1630.0,6.13489]
[1744649700832,0.7664,1630.4,1630.1,6.13456]
[1744649701029,6.89997,1630.4,1630.1,6.13456]
[1744649701211,6.14,1630.5,1630.3,6.13384]
[1744649701541,6.14,1630.5,1630.4,6.13346]
[1744649701744,16.03916,1630.6,1630.0,6.13486]
[1744649701948,9.9064,1630.6,1630.1,6.13454]
[1744649702130,7.12395,1630.5,1630.2,6.13411]
[1744649702316,6.13331,1630.5,1630.2,6.13408]
[1744649702646,6.1336,1630.4,1630.1,3.63590403]
[1744649702848,6.1336,1630.4,1630.1,9.77046403]
[1744649703155,6.13391,1630.3,1630.1,3.63590403]
[1744649703347,6.13309,1630.5,1629.9,9.77118403]
[1744649703549,6.13407,1630.3,1630.0,6.13492]
[1744649703755,19.020549,1630.4,1630.0,12.26979]
[1744649703933,12.27347,1630.4,1630.1,3.69724566]
[1744649704138,12.27347,1630.4,1630.1,3.63590403]
[1744649704445,18.4073,1630.4,1630.1,9.77047403]
[1744649704619,6.14,1630.4,1630.1,9.83181154]
[1744649704821,13.03917,1630.6,1630.3,6.13384]
[1744649705028,6.14,1630.6,1630.3,6.13384]
[1744649705216,6.14,1630.6,1630.3,9.76974403]
[1744649705409,6.14,1630.6,1630.4,6.19463296]
[1744649705731,12.27271,1630.6,1630.3,9.76965403]
[1744649705932,6.14,1630.6,1630.3,4.75651794]
[1744649706246,6.14,1630.6,1630.4,6.13336]
[1744649706442,6.14,1630.6,1630.5,6.13308]
[1744649706643,6.14,1630.6,1630.5,9.76898403]
[1744649706820,12.27172,1630.9,1630.6,6.13259]
[1744649707023,12.27172,1630.9,1630.6,6.90009]
[1744649707414,18.40353,1630.9,1630.6,6.90009]
[1744649707644,6.13203,1630.8,1630.6,0.7675]
[1744649708154,12.26417,1630.8,1630.5,9.76885403]
[1744649708355,6.13203,1630.8,1630.5,9.76885403]
[1744649708556,6.13203,1630.8,1630.5,16.96021943]
[1744649708756,6.13203,1630.8,1630.5,4.69428943]
[1744649708957,12.26436,1630.8,1630.5,4.69428943]
[1744649709331,12.26436,1630.8,1630.5,10.82724943]
[1744649709540,6.13203,1630.8,1630.5,10.82724943]
[1744649709736,6.14,1630.9,1630.4,6.94833]
[1744649709935,6.13203,1630.8,1630.5,4.0]
[1744649710161,6.13203,1630.8,1630.5,10.13308]
[1744649710327,12.26415,1630.8,1630.5,10.13308]
[1744649710522,6.14,1630.9,1630.7,6.13199]
[1744649710722,12.2709,1631.1,1630.8,12.2638]
[1744649710945,12.2709,1631.1,1630.8,6.19316345]
[1744649711124,6.14,1631.1,1630.8,6.19316345]
[1744649711329,12.27016,1631.3,1630.9,6.1313]
[1744649711622,12.27016,1631.3,1630.8,6.13175]
[1744649711623,6.13078,1631.2,1630.8,6.13175]
[1744649711822,6.13098,1631.1,1630.8,7.17863857]
[1744649712046,6.13098,1631.1,1630.7,10.46934573]
[1744649712226,6.1312,1631.0,1630.7,16.60153573]
[1744649712635,6.13169,1630.9,1630.8,4.0]
[1744649712843,12.27169,1630.9,1630.8,4.0]
[1744649713538,6.13197,1630.8,1630.5,15.90186403]
[1744649713739,18.40351,1630.9,1630.6,10.1327]
[1744649713933,12.27169,1630.9,1630.6,10.1327]
[1744649714160,12.27169,1630.9,1630.6,4.0]
[1744649714460,6.13202,1630.8,1630.6,4.0]
[1744649714666,12.27169,1630.9,1630.6,4.0]
[1744649714859,12.27169,1630.9,1630.6,10.13268]
[1744649715064,12.27169,1630.9,1630.6,4.0]
[1744649715267,6.13206,1630.8,1630.6,4.0]
[1744649715464,12.27168,1630.9,1630.6,10.13263]
[1744649715664,6.13233,1630.7,1630.6,4.0]
[1744649716029,6.13233,1630.7,1630.4,6.13336]
[1744649716235,6.14,1630.7,1630.5,6.13295]
[1744649716429,12.27244,1630.7,1630.4,6.13333]
[1744649716665,12.27244,1630.7,1630.3,0.85992816]
[1744649716666,6.13273,1630.6,1630.3,13.06598]
[1744649716829,6.13273,1630.6,1630.4,4.0]
[1744649717433,6.13308,1630.5,1630.4,4.0]
[1744649717628,16.04458,1630.5,1630.4,4.0]
[1744649717860,13.04458,1630.5,1630.4,4.0]
[1744649718061,6.9115,1630.5,1630.4,4.0]
[1744649718367,13.04458,1630.5,1630.4,4.0]
[1744649718539,8.936823,1630.5,1630.0,6.13481]
[1744649718734,12.26754,1630.4,1630.1,4.0]
[1744649719135,12.26754,1630.4,1630.0,12.26965]
[1744649719361,13.04465,1630.5,1629.9,6.90564]
[1744649719544,6.13358,1630.4,1630.0,0.690564]
[1744649719746,6.9047,1630.5,1630.2,6.13421]
[1744649719939,6.13365,1630.4,1630.1,6.13455]
[1744649720137,6.13365,1630.4,1630.1,6.13444]
[1744649720338,12.26583,1630.6,1630.2,6.13402]
[1744649720540,6.13275,1630.6,1630.3,6.13362]
[1744649720743,6.93699,1630.7,1630.4,6.13312]
[1744649720942,13.06949,1630.7,1630.3,12.2675]
[1744649721147,6.13283,1630.6,1630.3,6.13369]
[1744649721365,9.14,1630.8,1630.4,0.67469867]
[1744649721366,6.14,1630.8,1630.4,0.67469867]
[1744649721663,6.92951,1631.0,1630.6,6.13251]
[1744649721865,0.7982,1631.0,1630.7,6.1322]
[1744649722072,6.92951,1631.0,1630.7,6.1322]
[1744649722273,6.13159,1630.9,1630.6,6.13271]
[1744649722465,6.13159,1630.9,1630.6,6.13259]
[1744649722668,6.13159,1630.9,1630.7,0.613259]
[1744649723167,6.13195,1630.8,1630.5,6.95368]
[1744649723338,12.26348,1630.9,1630.5,13.08665]
[1744649723637,6.13159,1630.9,1630.5,13.08665]
[1744649723838,6.1322,1630.8,1630.5,0.8208]
[1744649724037,6.1322,1630.8,1630.6,4.0]
[1744649724239,6.13233,1630.7,1630.6,4.0]
[1744649724570,6.91043,1630.7,1630.6,4.0]
[1744649724738,13.05043,1630.7,1630.6,4.0]
[1744649725141,6.13286,1630.6,1630.4,4.0]
[1744649725349,13.05046,1630.7,1630.4,4.0]
[1744649725538,13.05046,1630.7,1629.9,12.77110403]
[1744649725539,7.2727,1630.3,1629.5,6.9750959]
[1744649725738,6.137,1629.5,1629.1,8.9554432]
[1744649725979,13.08305,1629.6,1629.1,15.0936532]
[1744649726138,3.2024954,1629.6,1629.2,4.0]
[1744649726340,6.13718,1629.5,1629.2,4.0]
[1744649726666,12.27429,1629.5,1629.3,7.75702224]
[1744649726867,6.13722,1629.4,1629.3,7.75702224]
[1744649727969,9.13575,1629.8,1629.3,7.75702224]
[1744649728175,6.13666,1629.6,1629.3,7.75702224]
[1744649728371,6.59715804,1629.7,1629.3,8.53272446]
[1744649728753,12.73352804,1629.7,1629.3,8.53272446]
[1744649728949,6.13648,1629.6,1629.3,8.53272446]
[1744649729275,6.13701,1629.5,1629.3,8.53272446]
[1744649729676,0.46103804,1629.7,1629.1,0.8212]
[1744649729971,6.13767,1629.3,1629.0,7.211]
[1744649730138,6.13767,1629.3,1629.1,4.0]
[1744649730342,6.13728,1629.4,1629.1,0.06137566]
[1744649730580,6.13781,1629.3,1629.0,7.211]
[1744649730784,6.13781,1629.3,1629.0,8.01353]
[1744649730785,6.13798,1629.2,1629.0,8.01353]
[1744649730979,12.27573,1629.3,1629.0,8.01353]
[1744649731143,12.27566,1629.3,1629.0,8.01353]
[1744649731339,6.13815,1629.2,1629.0,8.01353]
[1744649731574,6.13835,1629.1,1628.9,0.8143]
[1744649732151,6.13798,1629.2,1628.7,0.815]
[1744649732465,12.27888,1628.9,1628.7,4.815]
[1744649732671,6.13948,1628.8,1628.7,4.0]
[1744649733778,6.14001,1628.7,1628.5,0.7977]
[1744649734344,6.14024,1628.6,1628.5,0.7977]
[1744649734553,6.14001,1628.7,1628.5,4.7977]
[1744649734758,6.14001,1628.7,1628.5,0.7977]
[1744649735442,12.28011,1628.7,1628.5,0.7977]
[1744649735646,6.14001,1628.7,1628.5,0.7977]
[1744649736079,12.28005,1628.7,1628.5,0.7977]
[1744649736278,6.14001,1628.7,1628.5,0.7977]
[1744649736776,6.14118,1628.4,1628.2,0.8321]
[1744649736956,6.14118,1628.4,1628.3,4.0]
[1744649737277,6.14175,1628.2,1628.1,0.05]
[1744649738003,12.2832,1628.3,1628.1,4.05]
[1744649738292,6.14175,1628.2,1628.1,0.05]
[1744649738779,6.14154,1628.3,1628.1,0.05]
[1744649739279,13.09795,1628.4,1628.1,0.05]
[1744649739668,14.407745,1628.4,1628.1,0.05]
[1744649739977,6.14175,1628.2,1628.1,0.05]
[1744649740180,6.14138,1628.3,1628.1,0.05]
[1744649740552,8.266575,1628.4,1628.1,6.19198]
[1744649740878,14.407745,1628.4,1628.1,0.05]
[1744649741075,6.14139,1628.3,1628.1,0.05]
[1744649741393,12.28295,1628.3,1628.1,0.05]
[1744649741551,12.28302,1628.3,1628.1,0.05]
[1744649741754,6.14139,1628.3,1628.1,0.05]
[1744649741974,6.14175,1628.2,1628.1,0.05]
[1744649742148,6.93855,1628.2,1628.1,0.05]
[1744649742354,13.69531913,1628.2,1628.1,0.05]
[1744649742851,20.91231913,1628.2,1628.1,0.05]
[1744649743172,23.29555,1628.2,1628.1,0.05]
[1744649743478,26.38332355,1628.2,1628.1,0.05]
[1744649743780,26.37332355,1628.2,1628.1,0.05]
[1744649743984,19.16632355,1628.2,1628.1,0.05]
[1744649744379,26.37332355,1628.2,1628.1,0.05]
[1744649744582,13.07855,1628.2,1628.1,0.05]
[1744649750174,6.9368,1628.2,1628.1,0.05]
[1744649750381,6.14,1628.2,1628.1,0.05]
[1744649750579,12.28175,1628.2,1628.1,0.05]
[1744649750778,6.14,1628.2,1628.1,6.19212]
[1744649751293,6.14,1628.2,1628.1,0.05]
[1744649752205,7.368146,1628.2,1628.1,0.05]
[1744649752365,6.14,1628.2,1628.1,0.05]
[1744649752572,6.14,1628.2,1628.1,6.19212]
[1744649752886,0.7561,1628.4,1628.1,6.19207]
[1744649753084,6.89716,1628.4,1628.1,6.19207]
[1744649753287,6.89716,1628.4,1628.1,12.33414]
[1744649753485,12.28069,1628.5,1628.2,6.1417]
[1744649753680,12.28069,1628.5,1628.2,6.14164]
[1744649754375,6.14,1628.7,1628.4,6.14099]
[1744649754575,6.14,1628.7,1628.5,6.14046]
[1744649754775,13.11253,1628.8,1628.5,6.14046]
[1744649755000,19.25221,1628.8,1628.5,6.14046]
[1744649755408,13.11253,1628.8,1628.5,6.14046]
[1744649755574,13.11253,1628.8,1628.4,6.14091]
[1744649755575,6.14028,1628.6,1628.3,6.94578]
[1744649755976,6.14028,1628.6,1628.3,13.08706]
[1744649756175,6.14028,1628.6,1628.3,6.14135]
[1744649756404,6.14028,1628.6,1628.3,6.14125]
[1744649756776,12.28016,1628.7,1628.3,12.2825]
[1744649757003,6.14026,1628.6,1628.3,6.14125]
[1744649757203,6.14069,1628.5,1628.2,12.28329]
[1744649757505,1.228022,1628.6,1628.3,6.14107]
[1744649757710,12.28011,1628.7,1628.4,6.14089]
[1744649758207,6.14004,1628.7,1628.4,6.14089]
[1744649758406,19.75648368,1628.8,1628.3,12.28263]
[1744649758609,6.14007,1628.7,1628.3,6.1411]
[1744649758911,12.28002,1628.7,1628.3,12.2826]
[1744649759105,6.14027,1628.6,1628.3,6.1413]
[1744649759479,6.14027,1628.6,1628.3,12.28245]
[1744649759676,6.14,1628.7,1628.4,6.14088]
[1744649759878,6.14,1628.7,1628.4,6.93066]
[1744649760129,6.14,1630.3,1628.8,0.7898]
[1744649760290,0.7533,1630.4,1629.7,6.13609]
[1744649760613,0.31970945,1630.2,1629.9,6.13533]
[1744649760815,9.78336968,1630.3,1629.8,6.13557]
[1744649761133,0.8229,1630.0,1629.6,3.0]
[1744649761331,3.64940968,1629.9,1629.8,6.13572]
[1744649761535,0.8229,1630.0,1629.7,10.13596]
[1744649761821,0.8229,1630.0,1629.9,6.13534]
[1744649761991,0.8229,1630.0,1629.8,6.13555]
[1744649762183,0.8229,1630.0,1629.8,12.27109]
[1744649762611,0.8229,1630.0,1629.8,6.13554]
[1744649762811,0.8229,1630.0,1629.8,12.2711]
[1744649763111,0.8229,1630.0,1629.8,6.13554]
[1744649763483,0.8229,1630.0,1629.8,6.1357]
[1744649763680,0.8161,1630.3,1629.7,0.7855]
[1744649764013,0.8161,1630.3,1630.1,6.13423]
[1744649765113,0.8161,1630.3,1630.0,6.13491]
[1744649765290,0.8161,1630.3,1630.0,12.26982]
[1744649765483,0.8161,1630.3,1630.1,6.13443]
[1744649765883,0.8161,1630.3,1629.9,6.13529]
[1744649766085,6.95007,1630.3,1629.9,12.27044]
[1744649766392,6.95007,1630.3,1629.7,0.7855]
[1744649766393,0.695007,1630.2,1630.1,6.13459]
[1744649766591,0.8161,1630.3,1630.1,12.26918]
[1744649766799,0.8161,1630.3,1629.9,6.13534]
[1744649766800,0.8056,1630.5,1630.0,6.13496]
[1744649767000,0.8056,1630.5,1629.9,6.13534]
[1744649767310,0.8056,1630.5,1630.2,6.1341]
[1744649767517,6.93869,1630.5,1630.2,6.1341]
[1744649767683,12.967529,1630.4,1630.0,6.13478]
[1744649768015,12.967639,1630.4,1629.9,6.13527]
[1744649768197,6.13461,1630.1,1629.8,6.13568]
[1744649768399,0.8012,1630.0,1629.7,12.27197]
[1744649768695,6.14,1629.9,1629.8,6.13557]
[1744649769216,6.14,1629.9,1629.7,12.27191]
[1744649769395,6.754,1629.9,1629.7,12.27191]
[1744649769595,6.754,1629.9,1629.8,6.13572]
[1744649769980,6.754,1629.9,1629.6,3.0]
[1744649770291,6.13729,1629.4,1629.0,6.13847]
[1744649770495,4.19940968,1629.7,1629.2,6.13798]
[1744649770496,6.9393,1629.3,1629.2,6.13798]
[1744649770821,7.63323,1629.3,1629.2,6.13798]
[1744649771015,7.63323,1629.3,1629.1,6.13821]
[1744649771218,7.63323,1629.3,1628.7,3.8023]
[1744649771385,12.27799,1629.2,1628.9,4.0]
[1744649771822,6.1385,1629.1,1628.7,13.08184]
[1744649772003,7.980149,1629.1,1628.7,12.27954]
[1744649772311,14.118719,1629.1,1628.7,12.27945]
[1744649772512,7.980149,1629.1,1628.8,4.0]
[1744649772714,6.139,1629.0,1628.8,4.0]
[1744649772917,7.51361,1628.9,1628.8,4.0]
[1744649773093,18.632871,1628.9,1628.2,6.9364]
[1744649773422,6.13961,1628.8,1628.4,6.14077]
[1744649773617,6.13954,1628.8,1628.4,6.1408]
[1744649773785,8.943761,1628.9,1628.4,6.1408]
[1744649773992,8.943761,1628.9,1628.7,6.1397]
[1744649773993,6.14,1628.9,1628.7,6.1397]
[1744649774306,0.8331,1629.1,1628.7,6.75364]
[1744649774704,6.97147,1629.1,1628.7,6.75364]
[1744649774882,6.97147,1629.1,1628.7,6.13967]
[1744649775302,6.13884,1629.0,1628.6,12.28034]
[1744649775532,0.8331,1629.1,1628.7,6.13964]
[1744649775737,3.69393,1629.3,1628.6,0.752]
[1744649775738,6.13897,1629.0,1628.6,0.752]
[1744649776045,6.13986,1628.7,1628.4,6.89442]
[1744649776337,6.14024,1628.6,1628.5,4.0]
[1744649776899,6.14135,1628.4,1628.1,0.05]
[1744649777138,12.28254,1628.4,1628.2,4.0]
[1744649777844,6.14138,1628.3,1628.1,0.05]
[1744649778004,13.11299,1628.5,1628.1,6.19193]
[1744649778203,8.283479,1628.5,1628.2,6.14161]
[1744649778405,6.14155,1628.3,1628.1,0.05]
[1744649778821,6.14175,1628.2,1628.1,0.05]
[1744649779711,6.14,1628.3,1628.1,0.05]
[1744649780049,12.28166,1628.3,1628.1,0.05]
[1744649780206,6.14,1628.3,1628.1,0.05]
[1744649781650,6.14,1628.3,1628.2,6.94425]
[1744649782438,6.14,1628.5,1628.2,6.94425]
[1744649782610,6.14,1628.5,1628.3,6.14112]
[1744649782843,6.14,1628.5,1628.3,12.28238]
[1744649783043,6.14,1628.5,1628.3,6.14112]
[1744649783248,6.14,1628.5,1628.3,12.28235]
[1744649783571,12.28065,1628.5,1628.2,6.94417]
[1744649783785,6.14,1628.5,1628.2,0.8025]
[1744649784016,6.14,1628.5,1628.3,6.14116]
[1744649784285,12.89465,1628.5,1628.1,6.19203]
[1744649784437,12.89465,1628.5,1628.1,6.19199]
[1744649784784,6.14,1628.5,1628.3,12.2826]
[1744649785077,6.14,1628.5,1628.3,12.28258]
[1744649785281,6.14,1628.5,1628.3,6.14124]
[1744649785639,12.28063,1628.5,1628.1,6.19182]
[1744649785840,6.14148,1628.3,1628.1,0.05]
[1744649786090,13.05255,1628.4,1628.1,0.05]
[1744649786239,6.14175,1628.2,1628.1,0.05]
[1744649787186,0.7702,1628.4,1628.1,0.05]
[1744649787355,6.91132,1628.4,1628.1,0.05]
[1744649787548,15.0945483,1628.4,1628.1,6.19211]
[1744649787736,2.8122083,1628.4,1628.1,0.05]
[1744649788032,6.14,1628.5,1628.1,0.05]